{"text_format":"2","workbook":"xlsx","n_sheets":8,"sheets":["Quadro Resumo","Motorista - Módulos 1 a 6","Perfuratriz - Módulos 1 a 6","Servente - Módulos 1 a 6","Compressor - Módulos 1 a 6","Munck - Módulos 1 a 6","Insumos - Módulo 5","Diárias - Módulo 7"],"not_rendered":{"charts":0,"images":1,"macros":0,"external_links":0,"defined_names":8,"comments":0,"pivot_tables":0},"unopened":[],"bounds":{"document_bytes":16777216,"sheet_cells":100000,"run_cost":"one","rows_first":2000,"rows_last":500,"rows_between":2000,"halvings":0,"cell_chars":16384,"cell_head_chars":4096},"cells_cut":0,"cells_raw":0,"read":"whole","date_system":"1900"}

{"sheet":"Quadro Resumo","index":0,"n_rows":22,"n_cols":2,"rows_kept":22,"cut":false,"hidden":false,"merged":[[2,0,2,1],[0,0,0,1],[1,0,1,1]]}
["Anexo 4 – Planilha de Custos e Formação de Preços. "]
[]
["QUADRO RESUMO"]
["Composição dos Custos","Mensal"]
["Custos Fixos Motorista (Módulos de 1 a 6 - Custos diretos e indiretos)",{"$f":"TRUNC('Motorista - Módulos 1 a 6'!D118,2)","v":6298.96}]
["Custos Fixos Operador de Perfuratriz (Módulos de 1 a 6 - Custos diretos e indiretos)",{"$f":"TRUNC('Perfuratriz - Módulos 1 a 6'!D117,2)","v":6032.62}]
["Custos Fixos Servente (Módulos de 1 a 6 - Custos diretos e indiretos)",{"$f":"TRUNC('Servente - Módulos 1 a 6'!D117,2)","v":4592.54}]
["Custos Fixos Compressorista (Módulos de 1 a 6 - Custos diretos e indiretos)",{"$f":"TRUNC('Compressor - Módulos 1 a 6'!D117,2)","v":4924.25}]
["Custos Fixos Munck (Módulos de 1 a 6 - Custos diretos e indiretos)",{"$f":"TRUNC('Munck - Módulos 1 a 6'!D118,2)","v":6298.96}]
["Custos Variáveis (Módulo 7 - Diárias)",{"$f":"TRUNC('Diárias - Módulo 7'!C27,2)","v":4727.99}]
["Total Motorista (Custos Fixos + Custos Variáveis) - 1 Posto de Trabalho",{"$f":"B5+$B$10","v":11026.95}]
["Total Operador de Perfuratriz (Custos Fixos + Custos Variáveis) - 1 Posto de Trabalho",{"$f":"B6+$B$10","v":10760.61}]
["Total Servente (Custos Fixos + Custos Variáveis) - 1 Posto de Trabalho",9320.5299999999988]
["Total Compressorista (Custos Fixos + Custos Variáveis) - 1 Posto de Trabalho",9652.24]
["Total Munck (Custos Fixos + Custos Variáveis) - 1 Posto de Trabalho",11026.95]
[{"$f":"\"Total Mensal (Custos Fixos + Custos Variáveis)\"","v":"Total Mensal (Custos Fixos + Custos Variáveis)"},{"$f":"TRUNC(B11*'Motorista - Módulos 1 a 6'!D10+B12*'Perfuratriz - Módulos 1 a 6'!D10+B13*'Servente - Módulos 1 a 6'!D10+B14*'Compressor - Módulos 1 a 6'!D10+B15*'Munck - Módulos 1 a 6'!D10,2)","v":61107.81}]
[]
["Rendimento de Execução de Poços pela 7ªSR Mensal (m)",1437]
[{"$f":"\"Total de Execução de Poços Anual (m)\"","v":"Total de Execução de Poços Anual (m)"},{"$f":"TRUNC(B18*12,2)","v":17244}]
[]
[{"$f":"\"Total Custo de Equipe por Metro Linear de Poço\"","v":"Total Custo de Equipe por Metro Linear de Poço"},{"$f":"TRUNC(B16/B18,2)","v":42.52}]
[{"$f":"\"Total Custo de Equipe Anual\"","v":"Total Custo de Equipe Anual"},{"$f":"TRUNC(B21*B19,2)","v":733214.88}]

{"sheet":"Motorista - Módulos 1 a 6","index":1,"n_rows":118,"n_cols":4,"rows_kept":118,"cut":false,"hidden":false,"merged":[[11,0,11,2],[0,0,0,3],[1,0,1,3],[2,0,2,3],[3,0,3,3],[4,0,4,2],[5,0,5,2],[6,0,6,2],[7,0,7,2],[8,0,8,2],[9,0,9,2],[10,0,10,2],[49,0,49,1],[12,0,12,2],[14,0,14,3],[20,0,20,3],[21,0,21,3],[29,0,29,1],[30,0,30,3],[31,0,31,3],[32,0,32,1],[35,0,35,1],[36,0,36,3],[37,0,37,1],[72,0,72,3],[50,0,50,3],[51,0,51,1],[54,0,54,1],[55,0,55,3],[56,0,56,1],[57,0,57,1],[61,0,61,1],[62,0,62,3],[63,0,63,1],[70,0,70,1],[71,0,71,3],[96,0,96,3],[73,0,73,2],[74,0,74,1],[75,0,75,1],[76,0,76,1],[77,0,77,1],[78,0,78,1],[79,0,79,1],[81,0,81,1],[88,0,88,1],[90,0,90,3],[94,0,94,1],[117,0,117,2],[99,1,99,2],[101,1,101,2],[106,0,106,2],[108,0,108,3],[109,0,109,1],[115,0,115,2]]}
["MÓDULOS 1 A 6 (CUSTOS FIXOS)"]
["Planilha de Custos e Formação de Preços "]
[{"$f":"D8","v":"Motorista de Caminhão Truk"}]
["Discriminação dos Serviços"]
["Data de apresentação da proposta",null,null,"2025-05-16"]
["Município",null,null,"Teresina - PI"]
["Ano do Acordo, Convenção ou Dissídio Coletivo",null,null,"MR022354/2025"]
["Tipo de Serviço",null,null,"Motorista de Caminhão Truk"]
["Unidade de Medida",null,null,"Posto"]
["Quantidade máxima passível de contratação em função da unidade de medida",null,null,1]
["Nº de meses de execução contratual",null,null,12]
["Regime Tributário da Empresa"]
["Se Optante pelo Simples Nacional, preencher o faturamento acumulado dos últimos 12 meses "]
[]
["Dados complementares para composição dos custos referente à mão-de-obra"]
[1,"Tipo de Serviço",null,{"$f":"D8","v":"Motorista de Caminhão Truk"}]
[2,"Classificação Brasileira de Ocupações (CBO)",null,"7825-10"]
[3,"Salário Nominativo da Categoria Profissional (Cláusula 2 e 3ª da Convenção Coletiva de Trabalho)",null,2226.4]
[4,"Categoria profissional (vinculada à execução contratual)",null,"SITRICOM"]
[5,"Data base da categoria (dia/mês/ano)",null,"2024-11-01"]
[]
["MÓDULO 1 - COMPOSIÇÃO DA REMUNERAÇÃO"]
[1,"COMPOSIÇÃO DA REMUNERAÇÃO","%","VALOR (R$)"]
["A","Salário Base (Cláusula 2 e 3ª da Convenção Coletiva de Trabalho)",null,{"$f":"D18","v":2226.4}]
["B","Adicional Periculosidade  (Cláusulas 12ª da Convenção Coletiva de Trabalho)",null,0]
["C","Adicional Insalubridade (Cláusulas 12ª da Convenção Coletiva de Trabalho)",null,0]
["D","Adicional Noturno (Cláusulas 11ª da Convenção Coletiva de Trabalho)",null,0]
["E","Adicional de Hora Noturna Reduzida (Cláusulas 11ª da Convenção Coletiva de Trabalho)",null,0]
["F","Adicional de Hora Extra no Feriado Trabalhado  (Cláusulas 10ª da Convenção Coletiva de Trabalho)",null,0]
["TOTAL DO MÓDULO 1",null,null,{"$f":"TRUNC(SUM(D24:D29),2)","v":2226.4}]
[]
["MÓDULO 2 – ENCARGOS E BENEFÍCIOS ANUAIS, MENSAIS E DIÁRIOS"]
["Submódulo 2.1 - 13º Salário, Férias e Adicional de Férias",null,"%","VALOR (R$)"]
["A","13º (décimo terceiro) Salário (SINAPI - Composição de Encargos Sociais - 12/2023)",{"$f":"1/12","v":8.3333333333333329E-2},{"$f":"$D$30*C34","v":185.53333333333333}]
["B","Férias e 1/3 Constitucional (ANEXO XII da Instrução Normativa Nº 5, de 26 de Maio De 2017)",0.121,{"$f":"C35*D30","v":269.39440000000002}]
["TOTAL SUBMÓDULO 2.1",null,{"$f":"TRUNC(SUM(C34:C35),4)","v":0.20430000000000001},{"$f":"TRUNC(SUM(D34:D35),2)","v":454.92}]
[]
["Submódulo 2.2 - GPS, FGTS e Outras Contribuições",null,"%","VALOR (R$)"]
["A","INSS (SINAPI - Composição de Encargos Sociais - 12/2023)",0.2,{"$f":"($D$30+$D$36)*C39","v":536.26400000000001}]
["B","Salário Educação (SINAPI - Composição de Encargos Sociais - 12/2023)",2.5000000000000001E-2,{"$f":"($D$30+$D$36)*C40","v":67.033000000000001}]
["C","SAT (SINAPI - Composição de Encargos Sociais - 12/2023)",0.03,{"$f":"($D$30+$D$36)*C41","v":80.439599999999999}]
["D","SESC ou SESI (SINAPI - Composição de Encargos Sociais - 12/2023)",1.4999999999999999E-2,40.219799999999999]
["E","SENAI - SENAC (SINAPI - Composição de Encargos Sociais - 12/2023)",0.01,26.813200000000002]
["F","SEBRAE (SINAPI - Composição de Encargos Sociais - 12/2023)",6.0000000000000001E-3,16.08792]
["G","INCRA (SINAPI - Composição de Encargos Sociais - 12/2023)",2E-3,5.3626400000000007]
["H","FGTS (SINAPI - Composição de Encargos Sociais - 12/2023)",0.08,214.50560000000002]
["I","Contribuição Social (Cláusula 60ª da Convenção Coletiva de Trabalho)",0.01,{"$f":"($D$30+$D$36)*C47","v":26.813200000000002}]
["J","Contribuição Negocial (Cláusula 59ª da Convenção Coletiva de Trabalho)",{"$f":"0.05/12","v":4.1666666666666666E-3},11.172166666666667]
["L","Contribuição Confederativa (Cláusula 61ª da Convenção Coletiva de Trabalho)",0.01,26.813200000000002]
["TOTAL SUBMÓDULO 2.2",null,{"$f":"SUM(C39:C49)","v":0.39216666666666672},{"$f":"TRUNC(SUM(D39:D49),2)","v":1051.52}]
[]
["Submódulo 2.3 - Benefícios Mensais e Diários",null,null,"VALOR (R$)"]
["A","Auxílio Transporte ((Tarifa de transporte municipal*2*22\ndias) – 6%* Vencimento Básico)",4,{"$f":"(C53*2*22)-(D24*6%)","v":42.415999999999997}]
["B","Auxílio Refeição/Alimentação (Cláusula 15ª da Convenção Coletiva de Trabalho)",239.52,{"$f":"C54","v":239.52}]
["TOTAL SUBMÓDULO 2.3",null,null,{"$f":"TRUNC(SUM(D53:D54),2)","v":281.93}]
[]
["QUADRO-RESUMO DO MÓDULO 2 - ENCARGOS, BENEFÍCIOS ANUAIS, MENSAIS E DIÁRIOS"]
["Módulo 2 - Encargos, Benefícios Anuais, Mensais e Diários",null,null,"VALOR (R$)"]
["2.1","13º Salário, Férias e Adicional de Férias",null,{"$f":"D36","v":454.92}]
["2.2","GPS, FGTS e Outras Contribuições",null,{"$f":"D50","v":1051.52}]
["2.3","Benefícios Mensais e Diários",null,{"$f":"D55","v":281.93}]
["TOTAL DO MÓDULO 2",null,null,{"$f":"TRUNC(SUM(D59:D61),2)","v":1788.37}]
[]
["MÓDULO 3 – PROVISÃO PARA RESCISÃO"]
[3,"PROVISÃO PARA RESCISÃO","%","VALOR (R$)"]
["A","Aviso prévio indenizado  (SINAPI - Composição de Encargos Sociais - 12/2023)",4.0300000000000002E-2,{"$f":"$D$30*C66","v":89.723920000000007}]
["B","Incidência do FGTS sobre o Aviso prévio indenizado",{"$f":"$C$46*C66","v":3.2240000000000003E-3},{"$f":"C67*D30","v":7.177913600000001}]
["D","Aviso prévio  trabalhado  (SINAPI - Composição de Encargos Sociais -12/2023)",8.9999999999999998E-4,{"$f":"$D$30*C68","v":2.0037600000000002}]
["E","Incidência do Submódulo 2.2 sobre o Aviso Prévio Trabalhado",{"$f":"$C$50*C68","v":3.5295000000000004E-4},{"$f":"$D$30*C69","v":0.78580788000000013}]
["F","Multa do FGTS sobre o Aviso Prévio Indenizado e Aviso Prévio Trabalhado  (SINAPI - Composição de Encargos Sociais - 12/2023)",0.05,{"$f":"$D$30*C70","v":111.32000000000001}]
["TOTAL DO MÓDULO 3",null,{"$f":"TRUNC(SUM(C66:C70),4)","v":9.4700000000000006E-2},{"$f":"TRUNC(SUM(D66:D70),2)","v":211.01}]
[]
["MÓDULO 4 – CUSTO DE REPOSIÇÃO DO PROFISSIONAL AUSENTE"]
["Base de Cálculo do Custo do Substituto (BCCS) = Módulos 1 + 2 + Férias - (V. Transporte e V. Alimentação) + 3 ",null,null,"VALOR (R$)"]
["Módulo 1 - Remuneração",null,null,{"$f":"D18","v":2226.4}]
["Módulo 2 - Encargos e Benefícios Anuais, Mensais e Diários",null,null,{"$f":"D62","v":1788.37}]
["Acréscimo das Férias com incidência do 2.2 ",null,null,{"$f":"1/12*D30*(1+C50)","v":258.29332222222223}]
["Desconto do Auxílio-Refeição",null,null,{"$f":"-D54","v":-239.52}]
["Módulo 3 - Provisão para Rescisão",null,null,{"$f":"D71","v":211.01}]
["TOTAL BCCS",null,null,{"$f":"TRUNC(SUM(D75:D79),2)","v":4244.55}]
[]
["Submódulo 4.1 - Substituto nas Ausências Legais",null,"%","VALOR (R$)"]
["A","Férias (SINAPI - Composição de Encargos Sociais - 12/2023)",0.10340000000000001,{"$f":"$D$80*C83","v":438.88647000000003}]
["B","Auxílio Doença  (SINAPI - Composição de Encargos Sociais - a partir de 12/2023)",6.4000000000000003E-3,27.165120000000002]
["C","Acidente de Trabalho  (SINAPI - Composição de Encargos Sociais - a partir de 12/2023)",8.0000000000000004E-4,3.3956400000000002]
["D","Faltas Legais  (SINAPI - Composição de Encargos Sociais - a partir de 12/2023)",{"$f":"(2/30)/12","v":5.5555555555555558E-3},23.580833333333334]
["E","Férias sobre afastamento maternidade  (SINAPI - Composição de Encargos Sociais - a partir de 12/2023)",2.9999999999999997E-4,1.2733649999999999]
["F","Licença paternidade  (SINAPI - Composição de Encargos Sociais - a partir de 12/2023)",4.0000000000000002E-4,1.6978200000000001]
["TOTAL MÓDULO 4",null,{"$f":"TRUNC(SUM(C83:C88),4)","v":0.1168},{"$f":"TRUNC(SUM(D83:D88),2)","v":495.99}]
[]
["MÓDULO 5 – INSUMOS DIVERSOS"]
[5,"INSUMOS DIVERSOS",null,"VALOR (R$)"]
["A","Uniformes ",null,{"$f":"'Insumos - Módulo 5'!F17","v":244.31499999999997}]
["B","Certificado Digital",null,{"$f":"'Insumos - Módulo 5'!F22","v":15.833333333333334}]
["TOTAL DO MÓDULO 5",null,null,{"$f":"TRUNC(SUM(D93:D94),2)","v":260.14}]
[]
["MÓDULO 6 – CUSTOS INDIRETOS, TRIBUTOS E LUCRO"]
[6,"CUSTOS INDIRETOS, TRIBUTOS E LUCRO","%","VALOR (R$)"]
["A","Custos Indiretos",0.05,{"$f":"TRUNC(C99*D116,2)","v":249.09}]
["B","Subtotal 1 (A + Total Custos Diretos)",null,{"$f":"D99+D116","v":5231}]
["C","Lucro",0.1,{"$f":"TRUNC(C101*(D99+D116),2)","v":523.1}]
["D","Subtotal 2 (B+C)",null,{"$f":"D100+D101","v":5754.1}]
["E","TRIBUTOS \nTributos (estimado com base no Lucro Presumido - a empresa deverá preencher de acordo com o regime tributário a que é submetida) - (E=(D/(1-Tributos%))x(Tributos%)",8.6499999999999994E-2,{"$f":"(D102/(1-C103))*C103","v":544.86004378763005}]
["E.1","COFINS",0.03]
["E.2","PIS ",6.4999999999999997E-3]
["E.3","ISS",0.05]
["TOTAL DO MÓDULO 6 (A+C+E)",null,null,{"$f":"D99+D101+D103","v":1317.0500437876301}]
[]
["QUADRO RESUMO DO CUSTO POR EMPREGADO"]
["Módulo",null,null,"VALOR (R$)"]
["A",{"$f":"A22","v":"MÓDULO 1 - COMPOSIÇÃO DA REMUNERAÇÃO"},null,{"$f":"D30","v":2226.4}]
["B",{"$f":"A32","v":"MÓDULO 2 – ENCARGOS E BENEFÍCIOS ANUAIS, MENSAIS E DIÁRIOS"},null,{"$f":"D62","v":1788.37}]
["C",{"$f":"A64","v":"MÓDULO 3 – PROVISÃO PARA RESCISÃO"},null,{"$f":"D71","v":211.01}]
["D",{"$f":"A73","v":"MÓDULO 4 – CUSTO DE REPOSIÇÃO DO PROFISSIONAL AUSENTE"},null,{"$f":"D89","v":495.99}]
["E",{"$f":"A91","v":"MÓDULO 5 – INSUMOS DIVERSOS"},null,{"$f":"D95","v":260.14}]
["Subtotal (A + B + C + D + E) - Custos Diretos",null,null,{"$f":"TRUNC(SUM(D111:D115),2)","v":4981.91}]
["F",{"$f":"A97","v":"MÓDULO 6 – CUSTOS INDIRETOS, TRIBUTOS E LUCRO"},null,{"$f":"D107","v":1317.0500437876301}]
["PREÇO TOTAL POR EMPREGADO / MÊS (CUSTO FIXO)",null,null,{"$f":"D117+D116","v":6298.9600437876297}]

{"sheet":"Perfuratriz - Módulos 1 a 6","index":2,"n_rows":117,"n_cols":4,"rows_kept":117,"cut":false,"hidden":false,"merged":[[11,0,11,2],[0,0,0,3],[1,0,1,3],[2,0,2,3],[3,0,3,3],[4,0,4,2],[5,0,5,2],[6,0,6,2],[7,0,7,2],[8,0,8,2],[9,0,9,2],[10,0,10,2],[49,0,49,1],[12,0,12,2],[14,0,14,3],[20,0,20,3],[21,0,21,3],[29,0,29,1],[30,0,30,3],[31,0,31,3],[32,0,32,1],[35,0,35,1],[36,0,36,3],[37,0,37,1],[72,0,72,3],[50,0,50,3],[51,0,51,1],[54,0,54,1],[55,0,55,3],[56,0,56,1],[57,0,57,1],[61,0,61,1],[62,0,62,3],[63,0,63,1],[70,0,70,1],[71,0,71,3],[95,0,95,3],[73,0,73,2],[74,0,74,1],[75,0,75,1],[76,0,76,1],[77,0,77,1],[78,0,78,1],[79,0,79,1],[81,0,81,1],[88,0,88,1],[90,0,90,3],[93,0,93,1],[116,0,116,2],[98,1,98,2],[100,1,100,2],[105,0,105,2],[107,0,107,3],[108,0,108,1],[114,0,114,2]]}
["MÓDULOS 1 A 6 (CUSTOS FIXOS)"]
["Planilha de Custos e Formação de Preços "]
[{"$f":"D8","v":"Operador de máquina perfuratriz"}]
["Discriminação dos Serviços"]
["Data de apresentação da proposta",null,null,"2025-05-16"]
["Município",null,null,"Teresina - PI"]
["Ano do Acordo, Convenção ou Dissídio Coletivo",null,null,"MR022354/2025"]
["Tipo de Serviço",null,null,"Operador de máquina perfuratriz"]
["Unidade de Medida",null,null,"Posto"]
["Quantidade máxima passível de contratação em função da unidade de medida",null,null,1]
["Nº de meses de execução contratual",null,null,12]
["Regime Tributário da Empresa"]
["Se Optante pelo Simples Nacional, preencher o faturamento acumulado dos últimos 12 meses "]
[]
["Dados complementares para composição dos custos referente à mão-de-obra"]
[1,"Tipo de Serviço",null,{"$f":"D8","v":"Operador de máquina perfuratriz"}]
[2,"Classificação Brasileira de Ocupações (CBO)",null,"7112-30"]
[3,"Salário Nominativo da Categoria Profissional (Cláusula 2 e 3ª da Convenção Coletiva de Trabalho)",null,2125.1999999999998]
[4,"Categoria profissional (vinculada à execução contratual)",null,"SITRICOM"]
[5,"Data base da categoria (dia/mês/ano)",null,"2025-11-01"]
[]
["MÓDULO 1 - COMPOSIÇÃO DA REMUNERAÇÃO"]
[1,"COMPOSIÇÃO DA REMUNERAÇÃO","%","VALOR (R$)"]
["A","Salário Base (Cláusula 2 e 3ª da Convenção Coletiva de Trabalho)",null,{"$f":"D18","v":2125.1999999999998}]
["B","Adicional Periculosidade  (Cláusulas 12ª da Convenção Coletiva de Trabalho)",null,0]
["C","Adicional Insalubridade (Cláusulas 12ª da Convenção Coletiva de Trabalho)",null,0]
["D","Adicional Noturno (Cláusulas 11ª da Convenção Coletiva de Trabalho)",null,0]
["E","Adicional de Hora Noturna Reduzida (Cláusulas 11ª da Convenção Coletiva de Trabalho)",null,0]
["F","Adicional de Hora Extra no Feriado Trabalhado  (Cláusulas 10ª da Convenção Coletiva de Trabalho)",null,0]
["TOTAL DO MÓDULO 1",null,null,{"$f":"TRUNC(SUM(D24:D29),2)","v":2125.1999999999998}]
[]
["MÓDULO 2 – ENCARGOS E BENEFÍCIOS ANUAIS, MENSAIS E DIÁRIOS"]
["Submódulo 2.1 - 13º Salário, Férias e Adicional de Férias",null,"%","VALOR (R$)"]
["A","13º (décimo terceiro) Salário (SINAPI - Composição de Encargos Sociais - 12/2023)",{"$f":"1/12","v":8.3333333333333329E-2},{"$f":"$D$30*C34","v":177.09999999999997}]
["B","Férias e 1/3 Constitucional (ANEXO XII da Instrução Normativa Nº 5, de 26 de Maio De 2017)",0.121,{"$f":"C35*D30","v":257.14919999999995}]
["TOTAL SUBMÓDULO 2.1",null,{"$f":"TRUNC(SUM(C34:C35),4)","v":0.20430000000000001},{"$f":"TRUNC(SUM(D34:D35),2)","v":434.24}]
[]
["Submódulo 2.2 - GPS, FGTS e Outras Contribuições",null,"%","VALOR (R$)"]
["A","INSS (SINAPI - Composição de Encargos Sociais - 12/2023)",0.2,{"$f":"($D$30+$D$36)*C39","v":511.88799999999992}]
["B","Salário Educação (SINAPI - Composição de Encargos Sociais - 12/2023)",2.5000000000000001E-2,{"$f":"($D$30+$D$36)*C40","v":63.98599999999999}]
["C","SAT (SINAPI - Composição de Encargos Sociais - 12/2023)",0.03,{"$f":"($D$30+$D$36)*C41","v":76.783199999999979}]
["D","SESC ou SESI (SINAPI - Composição de Encargos Sociais - 12/2023)",1.4999999999999999E-2,38.39159999999999]
["E","SENAI - SENAC (SINAPI - Composição de Encargos Sociais - 12/2023)",0.01,25.594399999999997]
["F","SEBRAE (SINAPI - Composição de Encargos Sociais - 12/2023)",6.0000000000000001E-3,15.356639999999999]
["G","INCRA (SINAPI - Composição de Encargos Sociais - 12/2023)",2E-3,5.118879999999999]
["H","FGTS (SINAPI - Composição de Encargos Sociais - 12/2023)",0.08,204.75519999999997]
["I","Contribuição Social (Cláusula 60ª da Convenção Coletiva de Trabalho)",0.01,25.594399999999997]
["J","Contribuição Negocial (Cláusula 59ª da Convenção Coletiva de Trabalho)",{"$f":"0.05/12","v":4.1666666666666666E-3},10.664333333333332]
["L","Contribuição Confederativa (Cláusula 61ª da Convenção Coletiva de Trabalho)",0.01,25.594399999999997]
["TOTAL SUBMÓDULO 2.2",null,{"$f":"SUM(C39:C49)","v":0.39216666666666672},{"$f":"TRUNC(SUM(D39:D49),2)","v":1003.72}]
[]
["Submódulo 2.3 - Benefícios Mensais e Diários",null,null,"VALOR (R$)"]
["A","Auxílio Transporte ((Tarifa de transporte municipal*2*22\ndias) – 6%* Vencimento Básico)",4,{"$f":"(C53*2*22)-(D24*6%)","v":48.488000000000014}]
["B","Auxílio Refeição/Alimentação (Cláusula 15ª da Convenção Coletiva de Trabalho)",239.52,{"$f":"C54","v":239.52}]
["TOTAL SUBMÓDULO 2.3",null,null,{"$f":"TRUNC(SUM(D53:D54),2)","v":288}]
[]
["QUADRO-RESUMO DO MÓDULO 2 - ENCARGOS, BENEFÍCIOS ANUAIS, MENSAIS E DIÁRIOS"]
["Módulo 2 - Encargos, Benefícios Anuais, Mensais e Diários",null,null,"VALOR (R$)"]
["2.1","13º Salário, Férias e Adicional de Férias",null,{"$f":"D36","v":434.24}]
["2.2","GPS, FGTS e Outras Contribuições",null,{"$f":"D50","v":1003.72}]
["2.3","Benefícios Mensais e Diários",null,{"$f":"D55","v":288}]
["TOTAL DO MÓDULO 2",null,null,{"$f":"TRUNC(SUM(D59:D61),2)","v":1725.96}]
[]
["MÓDULO 3 – PROVISÃO PARA RESCISÃO"]
[3,"PROVISÃO PARA RESCISÃO","%","VALOR (R$)"]
["A","Aviso prévio indenizado  (SINAPI - Composição de Encargos Sociais - 12/2023)",4.0300000000000002E-2,{"$f":"$D$30*C66","v":85.645560000000003}]
["B","Incidência do FGTS sobre o Aviso prévio indenizado",{"$f":"$C$46*C66","v":3.2240000000000003E-3},{"$f":"C67*D30","v":6.8516447999999999}]
["D","Aviso prévio  trabalhado  (SINAPI - Composição de Encargos Sociais -12/2023)",8.9999999999999998E-4,{"$f":"$D$30*C68","v":1.9126799999999997}]
["E","Incidência do Submódulo 2.2 sobre o Aviso Prévio Trabalhado",{"$f":"$C$50*C68","v":3.5295000000000004E-4},{"$f":"$D$30*C69","v":0.75008934000000005}]
["F","Multa do FGTS sobre o Aviso Prévio Indenizado e Aviso Prévio Trabalhado  (SINAPI - Composição de Encargos Sociais - 12/2023)",0.05,{"$f":"$D$30*C70","v":106.25999999999999}]
["TOTAL DO MÓDULO 3",null,{"$f":"TRUNC(SUM(C66:C70),4)","v":9.4700000000000006E-2},{"$f":"TRUNC(SUM(D66:D70),2)","v":201.41}]
[]
["MÓDULO 4 – CUSTO DE REPOSIÇÃO DO PROFISSIONAL AUSENTE"]
["Base de Cálculo do Custo do Substituto (BCCS) = Módulos 1 + 2 + Férias - (V. Transporte e V. Alimentação) + 3 ",null,null,"VALOR (R$)"]
["Módulo 1 - Remuneração",null,null,{"$f":"D18","v":2125.1999999999998}]
["Módulo 2 - Encargos e Benefícios Anuais, Mensais e Diários",null,null,{"$f":"D62","v":1725.96}]
["Acréscimo das Férias com incidência do 2.2 ",null,null,{"$f":"1/12*D30*(1+C50)","v":246.55271666666664}]
["Desconto do Auxílio-Refeição",null,null,{"$f":"-D54","v":-239.52}]
["Módulo 3 - Provisão para Rescisão",null,null,{"$f":"D71","v":201.41}]
["TOTAL BCCS",null,null,{"$f":"TRUNC(SUM(D75:D79),2)","v":4059.6}]
[]
["Submódulo 4.1 - Substituto nas Ausências Legais",null,"%","VALOR (R$)"]
["A","Férias (SINAPI - Composição de Encargos Sociais - 12/2023)",0.10340000000000001,{"$f":"$D$80*C83","v":419.76264000000003}]
["B","Auxílio Doença  (SINAPI - Composição de Encargos Sociais - a partir de 12/2023)",6.4000000000000003E-3,25.981439999999999]
["C","Acidente de Trabalho  (SINAPI - Composição de Encargos Sociais - a partir de 12/2023)",8.0000000000000004E-4,3.2476799999999999]
["D","Faltas Legais  (SINAPI - Composição de Encargos Sociais - a partir de 12/2023)",{"$f":"(2/30)/12","v":5.5555555555555558E-3},22.553333333333335]
["E","Férias sobre afastamento maternidade  (SINAPI - Composição de Encargos Sociais - a partir de 12/2023)",2.9999999999999997E-4,1.2178799999999999]
["F","Licença paternidade  (SINAPI - Composição de Encargos Sociais - a partir de 12/2023)",4.0000000000000002E-4,1.62384]
["TOTAL MÓDULO 4",null,{"$f":"TRUNC(SUM(C83:C88),4)","v":0.1168},{"$f":"TRUNC(SUM(D83:D88),2)","v":474.38}]
[]
["MÓDULO 5 – INSUMOS DIVERSOS"]
[5,"INSUMOS DIVERSOS",null,"VALOR (R$)"]
["A","Uniformes ",null,{"$f":"'Insumos - Módulo 5'!F17","v":244.31499999999997}]
["TOTAL DO MÓDULO 5",null,null,{"$f":"TRUNC(SUM(D93:D93),2)","v":244.31}]
[]
["MÓDULO 6 – CUSTOS INDIRETOS, TRIBUTOS E LUCRO"]
[6,"CUSTOS INDIRETOS, TRIBUTOS E LUCRO","%","VALOR (R$)"]
["A","Custos Indiretos",0.05,{"$f":"TRUNC(C98*D115,2)","v":238.56}]
["B","Subtotal 1 (A + Total Custos Diretos)",null,{"$f":"D98+D115","v":5009.8200000000006}]
["C","Lucro",0.1,{"$f":"TRUNC(C100*(D98+D115),2)","v":500.98}]
["D","Subtotal 2 (B+C)",null,{"$f":"D99+D100","v":5510.8000000000011}]
["E","TRIBUTOS \nTributos (estimado com base no Lucro Presumido - a empresa deverá preencher de acordo com o regime tributário a que é submetida) - (E=(D/(1-Tributos%))x(Tributos%)",8.6499999999999994E-2,{"$f":"(D101/(1-C102))*C102","v":521.82178434592231}]
["E.1","COFINS",0.03]
["E.2","PIS ",6.4999999999999997E-3]
["E.3","ISS",0.05]
["TOTAL DO MÓDULO 6 (A+C+E)",null,null,{"$f":"D98+D100+D102","v":1261.3617843459224}]
[]
["QUADRO RESUMO DO CUSTO POR EMPREGADO"]
["Módulo",null,null,"VALOR (R$)"]
["A",{"$f":"A22","v":"MÓDULO 1 - COMPOSIÇÃO DA REMUNERAÇÃO"},null,{"$f":"D30","v":2125.1999999999998}]
["B",{"$f":"A32","v":"MÓDULO 2 – ENCARGOS E BENEFÍCIOS ANUAIS, MENSAIS E DIÁRIOS"},null,{"$f":"D62","v":1725.96}]
["C",{"$f":"A64","v":"MÓDULO 3 – PROVISÃO PARA RESCISÃO"},null,{"$f":"D71","v":201.41}]
["D",{"$f":"A73","v":"MÓDULO 4 – CUSTO DE REPOSIÇÃO DO PROFISSIONAL AUSENTE"},null,{"$f":"D89","v":474.38}]
["E",{"$f":"A91","v":"MÓDULO 5 – INSUMOS DIVERSOS"},null,{"$f":"D94","v":244.31}]
["Subtotal (A + B + C + D + E) - Custos Diretos",null,null,{"$f":"TRUNC(SUM(D110:D114),2)","v":4771.26}]
["F",{"$f":"A96","v":"MÓDULO 6 – CUSTOS INDIRETOS, TRIBUTOS E LUCRO"},null,{"$f":"D106","v":1261.3617843459224}]
["PREÇO TOTAL POR EMPREGADO / MÊS (CUSTO FIXO)",null,null,{"$f":"D116+D115","v":6032.6217843459226}]

{"sheet":"Servente - Módulos 1 a 6","index":3,"n_rows":117,"n_cols":4,"rows_kept":117,"cut":false,"hidden":false,"merged":[[11,0,11,2],[0,0,0,3],[1,0,1,3],[2,0,2,3],[3,0,3,3],[4,0,4,2],[5,0,5,2],[6,0,6,2],[7,0,7,2],[8,0,8,2],[9,0,9,2],[10,0,10,2],[49,0,49,1],[12,0,12,2],[14,0,14,3],[20,0,20,3],[21,0,21,3],[29,0,29,1],[30,0,30,3],[31,0,31,3],[32,0,32,1],[35,0,35,1],[36,0,36,3],[37,0,37,1],[72,0,72,3],[50,0,50,3],[51,0,51,1],[54,0,54,1],[55,0,55,3],[56,0,56,1],[57,0,57,1],[61,0,61,1],[62,0,62,3],[63,0,63,1],[70,0,70,1],[71,0,71,3],[95,0,95,3],[73,0,73,2],[74,0,74,1],[75,0,75,1],[76,0,76,1],[77,0,77,1],[78,0,78,1],[79,0,79,1],[81,0,81,1],[88,0,88,1],[90,0,90,3],[93,0,93,1],[116,0,116,2],[98,1,98,2],[100,1,100,2],[105,0,105,2],[107,0,107,3],[108,0,108,1],[114,0,114,2]]}
["MÓDULOS 1 A 6 (CUSTOS FIXOS)"]
["Planilha de Custos e Formação de Preços "]
[{"$f":"D8","v":"Servente"}]
["Discriminação dos Serviços"]
["Data de apresentação da proposta",null,null,"2025-05-16"]
["Município",null,null,"Teresina - PI"]
["Ano do Acordo, Convenção ou Dissídio Coletivo",null,null,"MR022354/2025"]
["Tipo de Serviço",null,null,"Servente"]
["Unidade de Medida",null,null,"Posto"]
["Quantidade máxima passível de contratação em função da unidade de medida",null,null,2]
["Nº de meses de execução contratual",null,null,12]
["Regime Tributário da Empresa"]
["Se Optante pelo Simples Nacional, preencher o faturamento acumulado dos últimos 12 meses "]
[]
["Dados complementares para composição dos custos referente à mão-de-obra"]
[1,"Tipo de Serviço",null,{"$f":"D8","v":"Servente"}]
[2,"Classificação Brasileira de Ocupações (CBO)",null,"7170-20"]
[3,"Salário Nominativo da Categoria Profissional (Cláusula 2 e 3ª da Convenção Coletiva de Trabalho)",null,1533.5]
[4,"Categoria profissional (vinculada à execução contratual)",null,"SITRICOM"]
[5,"Data base da categoria (dia/mês/ano)",null,"2024-11-01"]
[]
["MÓDULO 1 - COMPOSIÇÃO DA REMUNERAÇÃO"]
[1,"COMPOSIÇÃO DA REMUNERAÇÃO","%","VALOR (R$)"]
["A","Salário Base (Cláusula 2 e 3ª da Convenção Coletiva de Trabalho)",null,{"$f":"D18","v":1533.5}]
["B","Adicional Periculosidade  (Cláusulas 12ª da Convenção Coletiva de Trabalho)",null,0]
["C","Adicional Insalubridade (Cláusulas 12ª da Convenção Coletiva de Trabalho)",null,0]
["D","Adicional Noturno (Cláusulas 11ª da Convenção Coletiva de Trabalho)",null,0]
["E","Adicional de Hora Noturna Reduzida (Cláusulas 11ª da Convenção Coletiva de Trabalho)",null,0]
["F","Adicional de Hora Extra no Feriado Trabalhado  (Cláusulas 10ª da Convenção Coletiva de Trabalho)",null,0]
["TOTAL DO MÓDULO 1",null,null,{"$f":"TRUNC(SUM(D24:D29),2)","v":1533.5}]
[]
["MÓDULO 2 – ENCARGOS E BENEFÍCIOS ANUAIS, MENSAIS E DIÁRIOS"]
["Submódulo 2.1 - 13º Salário, Férias e Adicional de Férias",null,"%","VALOR (R$)"]
["A","13º (décimo terceiro) Salário (SINAPI - Composição de Encargos Sociais - 12/2023)",{"$f":"1/12","v":8.3333333333333329E-2},{"$f":"$D$30*C34","v":127.79166666666666}]
["B","Férias e 1/3 Constitucional (ANEXO XII da Instrução Normativa Nº 5, de 26 de Maio De 2017)",0.121,{"$f":"C35*D30","v":185.55349999999999}]
["TOTAL SUBMÓDULO 2.1",null,{"$f":"TRUNC(SUM(C34:C35),4)","v":0.20430000000000001},{"$f":"TRUNC(SUM(D34:D35),2)","v":313.33999999999997}]
[]
["Submódulo 2.2 - GPS, FGTS e Outras Contribuições",null,"%","VALOR (R$)"]
["A","INSS (SINAPI - Composição de Encargos Sociais - 12/2023)",0.2,{"$f":"($D$30+$D$36)*C39","v":369.36799999999999}]
["B","Salário Educação (SINAPI - Composição de Encargos Sociais - 12/2023)",2.5000000000000001E-2,{"$f":"($D$30+$D$36)*C40","v":46.170999999999999}]
["C","SAT (SINAPI - Composição de Encargos Sociais - 12/2023)",0.03,{"$f":"($D$30+$D$36)*C41","v":55.405199999999994}]
["D","SESC ou SESI (SINAPI - Composição de Encargos Sociais - 12/2023)",1.4999999999999999E-2,27.702599999999997]
["E","SENAI - SENAC (SINAPI - Composição de Encargos Sociais - 12/2023)",0.01,18.468399999999999]
["F","SEBRAE (SINAPI - Composição de Encargos Sociais - 12/2023)",6.0000000000000001E-3,11.08104]
["G","INCRA (SINAPI - Composição de Encargos Sociais - 12/2023)",2E-3,3.6936800000000001]
["H","FGTS (SINAPI - Composição de Encargos Sociais - 12/2023)",0.08,147.74719999999999]
["I","Contribuição Social (Cláusula 60ª da Convenção Coletiva de Trabalho)",0.01,18.468399999999999]
["J","Contribuição Negocial (Cláusula 59ª da Convenção Coletiva de Trabalho)",{"$f":"0.05/12","v":4.1666666666666666E-3},7.6951666666666663]
["L","Contribuição Confederativa (Cláusula 61ª da Convenção Coletiva de Trabalho)",0.01,18.468399999999999]
["TOTAL SUBMÓDULO 2.2",null,{"$f":"SUM(C39:C49)","v":0.39216666666666672},{"$f":"TRUNC(SUM(D39:D49),2)","v":724.26}]
[]
["Submódulo 2.3 - Benefícios Mensais e Diários",null,null,"VALOR (R$)"]
["A","Auxílio Transporte ((Tarifa de transporte municipal*2*22\ndias) – 6%* Vencimento Básico)",4,{"$f":"(C53*2*22)-(D24*6%)","v":83.990000000000009}]
["B","Auxílio Refeição/Alimentação (Cláusula 15ª da Convenção Coletiva de Trabalho)",239.52,{"$f":"C54","v":239.52}]
["TOTAL SUBMÓDULO 2.3",null,null,{"$f":"TRUNC(SUM(D53:D54),2)","v":323.51}]
[]
["QUADRO-RESUMO DO MÓDULO 2 - ENCARGOS, BENEFÍCIOS ANUAIS, MENSAIS E DIÁRIOS"]
["Módulo 2 - Encargos, Benefícios Anuais, Mensais e Diários",null,null,"VALOR (R$)"]
["2.1","13º Salário, Férias e Adicional de Férias",null,{"$f":"D36","v":313.33999999999997}]
["2.2","GPS, FGTS e Outras Contribuições",null,{"$f":"D50","v":724.26}]
["2.3","Benefícios Mensais e Diários",null,{"$f":"D55","v":323.51}]
["TOTAL DO MÓDULO 2",null,null,{"$f":"TRUNC(SUM(D59:D61),2)","v":1361.11}]
[]
["MÓDULO 3 – PROVISÃO PARA RESCISÃO"]
[3,"PROVISÃO PARA RESCISÃO","%","VALOR (R$)"]
["A","Aviso prévio indenizado  (SINAPI - Composição de Encargos Sociais - 12/2023)",4.0300000000000002E-2,{"$f":"$D$30*C66","v":61.800050000000006}]
["B","Incidência do FGTS sobre o Aviso prévio indenizado",{"$f":"$C$46*C66","v":3.2240000000000003E-3},{"$f":"C67*D30","v":4.9440040000000005}]
["D","Aviso prévio  trabalhado  (SINAPI - Composição de Encargos Sociais -12/2023)",8.9999999999999998E-4,{"$f":"$D$30*C68","v":1.38015}]
["E","Incidência do Submódulo 2.2 sobre o Aviso Prévio Trabalhado",{"$f":"$C$50*C68","v":3.5295000000000004E-4},{"$f":"$D$30*C69","v":0.54124882500000004}]
["F","Multa do FGTS sobre o Aviso Prévio Indenizado e Aviso Prévio Trabalhado  (SINAPI - Composição de Encargos Sociais - 12/2023)",0.05,{"$f":"$D$30*C70","v":76.674999999999997}]
["TOTAL DO MÓDULO 3",null,{"$f":"TRUNC(SUM(C66:C70),4)","v":9.4700000000000006E-2},{"$f":"TRUNC(SUM(D66:D70),2)","v":145.34}]
[]
["MÓDULO 4 – CUSTO DE REPOSIÇÃO DO PROFISSIONAL AUSENTE"]
["Base de Cálculo do Custo do Substituto (BCCS) = Módulos 1 + 2 + Férias - (V. Transporte e V. Alimentação) + 3 ",null,null,"VALOR (R$)"]
["Módulo 1 - Remuneração",null,null,{"$f":"D18","v":1533.5}]
["Módulo 2 - Encargos e Benefícios Anuais, Mensais e Diários",null,null,{"$f":"D62","v":1361.11}]
["Acréscimo das Férias com incidência do 2.2 ",null,null,{"$f":"1/12*D30*(1+C50)","v":177.90729861111112}]
["Desconto do Auxílio-Refeição",null,null,{"$f":"-D54","v":-239.52}]
["Módulo 3 - Provisão para Rescisão",null,null,{"$f":"D71","v":145.34}]
["TOTAL BCCS",null,null,{"$f":"TRUNC(SUM(D75:D79),2)","v":2978.33}]
[]
["Submódulo 4.1 - Substituto nas Ausências Legais",null,"%","VALOR (R$)"]
["A","Férias (SINAPI - Composição de Encargos Sociais - 12/2023)",0.10340000000000001,{"$f":"$D$80*C83","v":307.95932199999999}]
["B","Auxílio Doença  (SINAPI - Composição de Encargos Sociais - a partir de 12/2023)",6.4000000000000003E-3,19.061312000000001]
["C","Acidente de Trabalho  (SINAPI - Composição de Encargos Sociais - a partir de 12/2023)",8.0000000000000004E-4,2.3826640000000001]
["D","Faltas Legais  (SINAPI - Composição de Encargos Sociais - a partir de 12/2023)",{"$f":"(2/30)/12","v":5.5555555555555558E-3},16.546277777777778]
["E","Férias sobre afastamento maternidade  (SINAPI - Composição de Encargos Sociais - a partir de 12/2023)",2.9999999999999997E-4,0.89349899999999993]
["F","Licença paternidade  (SINAPI - Composição de Encargos Sociais - a partir de 12/2023)",4.0000000000000002E-4,1.1913320000000001]
["TOTAL MÓDULO 4",null,{"$f":"TRUNC(SUM(C83:C88),4)","v":0.1168},{"$f":"TRUNC(SUM(D83:D88),2)","v":348.03}]
[]
["MÓDULO 5 – INSUMOS DIVERSOS"]
[5,"INSUMOS DIVERSOS",null,"VALOR (R$)"]
["A","Uniformes ",null,{"$f":"'Insumos - Módulo 5'!F17","v":244.31499999999997}]
["TOTAL DO MÓDULO 5",null,null,{"$f":"TRUNC(SUM(D93:D93),2)","v":244.31}]
[]
["MÓDULO 6 – CUSTOS INDIRETOS, TRIBUTOS E LUCRO"]
[6,"CUSTOS INDIRETOS, TRIBUTOS E LUCRO","%","VALOR (R$)"]
["A","Custos Indiretos",0.05,{"$f":"TRUNC(C98*D115,2)","v":181.61}]
["B","Subtotal 1 (A + Total Custos Diretos)",null,{"$f":"D98+D115","v":3813.9}]
["C","Lucro",0.1,{"$f":"TRUNC(C100*(D98+D115),2)","v":381.39}]
["D","Subtotal 2 (B+C)",null,{"$f":"D99+D100","v":4195.29}]
["E","TRIBUTOS \nTributos (estimado com base no Lucro Presumido - a empresa deverá preencher de acordo com o regime tributário a que é submetida) - (E=(D/(1-Tributos%))x(Tributos%)",8.6499999999999994E-2,{"$f":"(D101/(1-C102))*C102","v":397.2551559934318}]
["E.1","COFINS",0.03]
["E.2","PIS ",6.4999999999999997E-3]
["E.3","ISS",0.05]
["TOTAL DO MÓDULO 6 (A+C+E)",null,null,{"$f":"D98+D100+D102","v":960.2551559934318}]
[]
["QUADRO RESUMO DO CUSTO POR EMPREGADO"]
["Módulo",null,null,"VALOR (R$)"]
["A",{"$f":"A22","v":"MÓDULO 1 - COMPOSIÇÃO DA REMUNERAÇÃO"},null,{"$f":"D30","v":1533.5}]
["B",{"$f":"A32","v":"MÓDULO 2 – ENCARGOS E BENEFÍCIOS ANUAIS, MENSAIS E DIÁRIOS"},null,{"$f":"D62","v":1361.11}]
["C",{"$f":"A64","v":"MÓDULO 3 – PROVISÃO PARA RESCISÃO"},null,{"$f":"D71","v":145.34}]
["D",{"$f":"A73","v":"MÓDULO 4 – CUSTO DE REPOSIÇÃO DO PROFISSIONAL AUSENTE"},null,{"$f":"D89","v":348.03}]
["E",{"$f":"A91","v":"MÓDULO 5 – INSUMOS DIVERSOS"},null,{"$f":"D94","v":244.31}]
["Subtotal (A + B + C + D + E) - Custos Diretos",null,null,{"$f":"TRUNC(SUM(D110:D114),2)","v":3632.29}]
["F",{"$f":"A96","v":"MÓDULO 6 – CUSTOS INDIRETOS, TRIBUTOS E LUCRO"},null,{"$f":"D106","v":960.2551559934318}]
["PREÇO TOTAL POR EMPREGADO / MÊS (CUSTO FIXO)",null,null,{"$f":"D116+D115","v":4592.5451559934318}]

{"sheet":"Compressor - Módulos 1 a 6","index":4,"n_rows":117,"n_cols":4,"rows_kept":117,"cut":false,"hidden":false,"merged":[[11,0,11,2],[0,0,0,3],[1,0,1,3],[2,0,2,3],[3,0,3,3],[4,0,4,2],[5,0,5,2],[6,0,6,2],[7,0,7,2],[8,0,8,2],[9,0,9,2],[10,0,10,2],[49,0,49,1],[12,0,12,2],[14,0,14,3],[20,0,20,3],[21,0,21,3],[29,0,29,1],[30,0,30,3],[31,0,31,3],[32,0,32,1],[35,0,35,1],[36,0,36,3],[37,0,37,1],[72,0,72,3],[50,0,50,3],[51,0,51,1],[54,0,54,1],[55,0,55,3],[56,0,56,1],[57,0,57,1],[61,0,61,1],[62,0,62,3],[63,0,63,1],[70,0,70,1],[71,0,71,3],[95,0,95,3],[73,0,73,2],[74,0,74,1],[75,0,75,1],[76,0,76,1],[77,0,77,1],[78,0,78,1],[79,0,79,1],[81,0,81,1],[88,0,88,1],[90,0,90,3],[93,0,93,1],[116,0,116,2],[98,1,98,2],[100,1,100,2],[105,0,105,2],[107,0,107,3],[108,0,108,1],[114,0,114,2]]}
["MÓDULOS 1 A 6 (CUSTOS FIXOS)"]
["Planilha de Custos e Formação de Preços "]
[{"$f":"D8","v":"Compressorista"}]
["Discriminação dos Serviços"]
["Data de apresentação da proposta",null,null,"2025-05-16"]
["Município",null,null,"Teresina - PI"]
["Ano do Acordo, Convenção ou Dissídio Coletivo",null,null,"MR022354/2025"]
["Tipo de Serviço",null,null,"Compressorista"]
["Unidade de Medida",null,null,"Posto"]
["Quantidade máxima passível de contratação em função da unidade de medida",null,null,1]
["Nº de meses de execução contratual",null,null,12]
["Regime Tributário da Empresa"]
["Se Optante pelo Simples Nacional, preencher o faturamento acumulado dos últimos 12 meses "]
[]
["Dados complementares para composição dos custos referente à mão-de-obra"]
[1,"Tipo de Serviço",null,{"$f":"D8","v":"Compressorista"}]
[2,"Classificação Brasileira de Ocupações (CBO)",null,"8621-30"]
[3,"Salário Nominativo da Categoria Profissional (Cláusula 2 e 3ª da Convenção Coletiva de Trabalho)",null,1669.8]
[4,"Categoria profissional (vinculada à execução contratual)",null,"SITRICOM"]
[5,"Data base da categoria (dia/mês/ano)",null,"2024-11-01"]
[]
["MÓDULO 1 - COMPOSIÇÃO DA REMUNERAÇÃO"]
[1,"COMPOSIÇÃO DA REMUNERAÇÃO","%","VALOR (R$)"]
["A","Salário Base (Cláusula 2 e 3ª da Convenção Coletiva de Trabalho)",null,{"$f":"D18","v":1669.8}]
["B","Adicional Periculosidade  (Cláusulas 12ª da Convenção Coletiva de Trabalho)",null,0]
["C","Adicional Insalubridade (Cláusulas 12ª da Convenção Coletiva de Trabalho)",null,0]
["D","Adicional Noturno (Cláusulas 11ª da Convenção Coletiva de Trabalho)",null,0]
["E","Adicional de Hora Noturna Reduzida (Cláusulas 11ª da Convenção Coletiva de Trabalho)",null,0]
["F","Adicional de Hora Extra no Feriado Trabalhado  (Cláusulas 10ª da Convenção Coletiva de Trabalho)",null,0]
["TOTAL DO MÓDULO 1",null,null,{"$f":"TRUNC(SUM(D24:D29),2)","v":1669.8}]
[]
["MÓDULO 2 – ENCARGOS E BENEFÍCIOS ANUAIS, MENSAIS E DIÁRIOS"]
["Submódulo 2.1 - 13º Salário, Férias e Adicional de Férias",null,"%","VALOR (R$)"]
["A","13º (décimo terceiro) Salário (SINAPI - Composição de Encargos Sociais - 12/2023)",{"$f":"1/12","v":8.3333333333333329E-2},{"$f":"$D$30*C34","v":139.14999999999998}]
["B","Férias e 1/3 Constitucional (ANEXO XII da Instrução Normativa Nº 5, de 26 de Maio De 2017)",0.121,{"$f":"C35*D30","v":202.04579999999999}]
["TOTAL SUBMÓDULO 2.1",null,{"$f":"TRUNC(SUM(C34:C35),4)","v":0.20430000000000001},{"$f":"TRUNC(SUM(D34:D35),2)","v":341.19}]
[]
["Submódulo 2.2 - GPS, FGTS e Outras Contribuições",null,"%","VALOR (R$)"]
["A","INSS (SINAPI - Composição de Encargos Sociais - 12/2023)",0.2,{"$f":"($D$30+$D$36)*C39","v":402.19800000000004}]
["B","Salário Educação (SINAPI - Composição de Encargos Sociais - 12/2023)",2.5000000000000001E-2,{"$f":"($D$30+$D$36)*C40","v":50.274750000000004}]
["C","SAT (SINAPI - Composição de Encargos Sociais - 12/2023)",0.03,{"$f":"($D$30+$D$36)*C41","v":60.329699999999995}]
["D","SESC ou SESI (SINAPI - Composição de Encargos Sociais - 12/2023)",1.4999999999999999E-2,30.164849999999998]
["E","SENAI - SENAC (SINAPI - Composição de Encargos Sociais - 12/2023)",0.01,20.1099]
["F","SEBRAE (SINAPI - Composição de Encargos Sociais - 12/2023)",6.0000000000000001E-3,12.065939999999999]
["G","INCRA (SINAPI - Composição de Encargos Sociais - 12/2023)",2E-3,4.0219800000000001]
["H","FGTS (SINAPI - Composição de Encargos Sociais - 12/2023)",0.08,160.8792]
["I","Contribuição Social (Cláusula 60ª da Convenção Coletiva de Trabalho)",0.01,20.1099]
["J","Contribuição Negocial (Cláusula 59ª da Convenção Coletiva de Trabalho)",{"$f":"0.05/12","v":4.1666666666666666E-3},8.3791250000000002]
["L","Contribuição Confederativa (Cláusula 61ª da Convenção Coletiva de Trabalho)",0.01,20.1099]
["TOTAL SUBMÓDULO 2.2",null,{"$f":"SUM(C39:C49)","v":0.39216666666666672},{"$f":"TRUNC(SUM(D39:D49),2)","v":788.64}]
[]
["Submódulo 2.3 - Benefícios Mensais e Diários",null,null,"VALOR (R$)"]
["A","Auxílio Transporte ((Tarifa de transporte municipal*2*22\ndias) – 6%* Vencimento Básico)",4,{"$f":"(C53*2*22)-(D24*6%)","v":75.812000000000012}]
["B","Auxílio Refeição/Alimentação (Cláusula 15ª da Convenção Coletiva de Trabalho)",239.52,{"$f":"C54","v":239.52}]
["TOTAL SUBMÓDULO 2.3",null,null,{"$f":"TRUNC(SUM(D53:D54),2)","v":315.33}]
[]
["QUADRO-RESUMO DO MÓDULO 2 - ENCARGOS, BENEFÍCIOS ANUAIS, MENSAIS E DIÁRIOS"]
["Módulo 2 - Encargos, Benefícios Anuais, Mensais e Diários",null,null,"VALOR (R$)"]
["2.1","13º Salário, Férias e Adicional de Férias",null,{"$f":"D36","v":341.19}]
["2.2","GPS, FGTS e Outras Contribuições",null,{"$f":"D50","v":788.64}]
["2.3","Benefícios Mensais e Diários",null,{"$f":"D55","v":315.33}]
["TOTAL DO MÓDULO 2",null,null,{"$f":"TRUNC(SUM(D59:D61),2)","v":1445.16}]
[]
["MÓDULO 3 – PROVISÃO PARA RESCISÃO"]
[3,"PROVISÃO PARA RESCISÃO","%","VALOR (R$)"]
["A","Aviso prévio indenizado  (SINAPI - Composição de Encargos Sociais - 12/2023)",4.0300000000000002E-2,{"$f":"$D$30*C66","v":67.292940000000002}]
["B","Incidência do FGTS sobre o Aviso prévio indenizado",{"$f":"$C$46*C66","v":3.2240000000000003E-3},{"$f":"C67*D30","v":5.3834352000000001}]
["D","Aviso prévio  trabalhado  (SINAPI - Composição de Encargos Sociais -12/2023)",8.9999999999999998E-4,{"$f":"$D$30*C68","v":1.5028199999999998}]
["E","Incidência do Submódulo 2.2 sobre o Aviso Prévio Trabalhado",{"$f":"$C$50*C68","v":3.5295000000000004E-4},{"$f":"$D$30*C69","v":0.58935591000000009}]
["F","Multa do FGTS sobre o Aviso Prévio Indenizado e Aviso Prévio Trabalhado  (SINAPI - Composição de Encargos Sociais - 12/2023)",0.05,{"$f":"$D$30*C70","v":83.490000000000009}]
["TOTAL DO MÓDULO 3",null,{"$f":"TRUNC(SUM(C66:C70),4)","v":9.4700000000000006E-2},{"$f":"TRUNC(SUM(D66:D70),2)","v":158.25}]
[]
["MÓDULO 4 – CUSTO DE REPOSIÇÃO DO PROFISSIONAL AUSENTE"]
["Base de Cálculo do Custo do Substituto (BCCS) = Módulos 1 + 2 + Férias - (V. Transporte e V. Alimentação) + 3 ",null,null,"VALOR (R$)"]
["Módulo 1 - Remuneração",null,null,{"$f":"D18","v":1669.8}]
["Módulo 2 - Encargos e Benefícios Anuais, Mensais e Diários",null,null,{"$f":"D62","v":1445.16}]
["Acréscimo das Férias com incidência do 2.2 ",null,null,{"$f":"1/12*D30*(1+C50)","v":193.71999166666666}]
["Desconto do Auxílio-Refeição",null,null,{"$f":"-D54","v":-239.52}]
["Módulo 3 - Provisão para Rescisão",null,null,{"$f":"D71","v":158.25}]
["TOTAL BCCS",null,null,{"$f":"TRUNC(SUM(D75:D79),2)","v":3227.4}]
[]
["Submódulo 4.1 - Substituto nas Ausências Legais",null,"%","VALOR (R$)"]
["A","Férias (SINAPI - Composição de Encargos Sociais - 12/2023)",0.10340000000000001,{"$f":"$D$80*C83","v":333.71316000000002}]
["B","Auxílio Doença  (SINAPI - Composição de Encargos Sociais - a partir de 12/2023)",6.4000000000000003E-3,20.655360000000002]
["C","Acidente de Trabalho  (SINAPI - Composição de Encargos Sociais - a partir de 12/2023)",8.0000000000000004E-4,2.5819200000000002]
["D","Faltas Legais  (SINAPI - Composição de Encargos Sociais - a partir de 12/2023)",{"$f":"(2/30)/12","v":5.5555555555555558E-3},17.93]
["E","Férias sobre afastamento maternidade  (SINAPI - Composição de Encargos Sociais - a partir de 12/2023)",2.9999999999999997E-4,0.96821999999999997]
["F","Licença paternidade  (SINAPI - Composição de Encargos Sociais - a partir de 12/2023)",4.0000000000000002E-4,1.2909600000000001]
["TOTAL MÓDULO 4",null,{"$f":"TRUNC(SUM(C83:C88),4)","v":0.1168},{"$f":"TRUNC(SUM(D83:D88),2)","v":377.13}]
[]
["MÓDULO 5 – INSUMOS DIVERSOS"]
[5,"INSUMOS DIVERSOS",null,"VALOR (R$)"]
["A","Uniformes ",null,{"$f":"'Insumos - Módulo 5'!F17","v":244.31499999999997}]
["TOTAL DO MÓDULO 5",null,null,{"$f":"TRUNC(SUM(D93:D93),2)","v":244.31}]
[]
["MÓDULO 6 – CUSTOS INDIRETOS, TRIBUTOS E LUCRO"]
[6,"CUSTOS INDIRETOS, TRIBUTOS E LUCRO","%","VALOR (R$)"]
["A","Custos Indiretos",0.05,{"$f":"TRUNC(C98*D115,2)","v":194.73}]
["B","Subtotal 1 (A + Total Custos Diretos)",null,{"$f":"D98+D115","v":4089.38}]
["C","Lucro",0.1,{"$f":"TRUNC(C100*(D98+D115),2)","v":408.93}]
["D","Subtotal 2 (B+C)",null,{"$f":"D99+D100","v":4498.3100000000004}]
["E","TRIBUTOS \nTributos (estimado com base no Lucro Presumido - a empresa deverá preencher de acordo com o regime tributário a que é submetida) - (E=(D/(1-Tributos%))x(Tributos%)",8.6499999999999994E-2,{"$f":"(D101/(1-C102))*C102","v":425.94834701696772}]
["E.1","COFINS",0.03]
["E.2","PIS ",6.4999999999999997E-3]
["E.3","ISS",0.05]
["TOTAL DO MÓDULO 6 (A+C+E)",null,null,{"$f":"D98+D100+D102","v":1029.6083470169676}]
[]
["QUADRO RESUMO DO CUSTO POR EMPREGADO"]
["Módulo",null,null,"VALOR (R$)"]
["A",{"$f":"A22","v":"MÓDULO 1 - COMPOSIÇÃO DA REMUNERAÇÃO"},null,{"$f":"D30","v":1669.8}]
["B",{"$f":"A32","v":"MÓDULO 2 – ENCARGOS E BENEFÍCIOS ANUAIS, MENSAIS E DIÁRIOS"},null,{"$f":"D62","v":1445.16}]
["C",{"$f":"A64","v":"MÓDULO 3 – PROVISÃO PARA RESCISÃO"},null,{"$f":"D71","v":158.25}]
["D",{"$f":"A73","v":"MÓDULO 4 – CUSTO DE REPOSIÇÃO DO PROFISSIONAL AUSENTE"},null,{"$f":"D89","v":377.13}]
["E",{"$f":"A91","v":"MÓDULO 5 – INSUMOS DIVERSOS"},null,{"$f":"D94","v":244.31}]
["Subtotal (A + B + C + D + E) - Custos Diretos",null,null,{"$f":"TRUNC(SUM(D110:D114),2)","v":3894.65}]
["F",{"$f":"A96","v":"MÓDULO 6 – CUSTOS INDIRETOS, TRIBUTOS E LUCRO"},null,{"$f":"D106","v":1029.6083470169676}]
["PREÇO TOTAL POR EMPREGADO / MÊS (CUSTO FIXO)",null,null,{"$f":"D116+D115","v":4924.2583470169675}]

{"sheet":"Munck - Módulos 1 a 6","index":5,"n_rows":118,"n_cols":4,"rows_kept":118,"cut":false,"hidden":false,"merged":[[11,0,11,2],[0,0,0,3],[1,0,1,3],[2,0,2,3],[3,0,3,3],[4,0,4,2],[5,0,5,2],[6,0,6,2],[7,0,7,2],[8,0,8,2],[9,0,9,2],[10,0,10,2],[49,0,49,1],[12,0,12,2],[14,0,14,3],[20,0,20,3],[21,0,21,3],[29,0,29,1],[30,0,30,3],[31,0,31,3],[32,0,32,1],[35,0,35,1],[36,0,36,3],[37,0,37,1],[72,0,72,3],[50,0,50,3],[51,0,51,1],[54,0,54,1],[55,0,55,3],[56,0,56,1],[57,0,57,1],[61,0,61,1],[62,0,62,3],[63,0,63,1],[70,0,70,1],[71,0,71,3],[96,0,96,3],[73,0,73,2],[74,0,74,1],[75,0,75,1],[76,0,76,1],[77,0,77,1],[78,0,78,1],[79,0,79,1],[81,0,81,1],[88,0,88,1],[90,0,90,3],[94,0,94,1],[117,0,117,2],[99,1,99,2],[101,1,101,2],[106,0,106,2],[108,0,108,3],[109,0,109,1],[115,0,115,2]]}
["MÓDULOS 1 A 6 (CUSTOS FIXOS)"]
["Planilha de Custos e Formação de Preços "]
[{"$f":"D8","v":"Motorista de Caminhão Munck"}]
["Discriminação dos Serviços"]
["Data de apresentação da proposta",null,null,"2025-05-16"]
["Município",null,null,"Teresina - PI"]
["Ano do Acordo, Convenção ou Dissídio Coletivo",null,null,"MR022354/2025"]
["Tipo de Serviço",null,null,"Motorista de Caminhão Munck"]
["Unidade de Medida",null,null,"Posto"]
["Quantidade máxima passível de contratação em função da unidade de medida",null,null,1]
["Nº de meses de execução contratual",null,null,12]
["Regime Tributário da Empresa"]
["Se Optante pelo Simples Nacional, preencher o faturamento acumulado dos últimos 12 meses "]
[]
["Dados complementares para composição dos custos referente à mão-de-obra"]
[1,"Tipo de Serviço",null,{"$f":"D8","v":"Motorista de Caminhão Munck"}]
[2,"Classificação Brasileira de Ocupações (CBO)",null,"7825-10"]
[3,"Salário Nominativo da Categoria Profissional (Cláusula 2 e 3ª da Convenção Coletiva de Trabalho)",null,2226.4]
[4,"Categoria profissional (vinculada à execução contratual)",null,"SITRICOM"]
[5,"Data base da categoria (dia/mês/ano)",null,"2024-11-01"]
[]
["MÓDULO 1 - COMPOSIÇÃO DA REMUNERAÇÃO"]
[1,"COMPOSIÇÃO DA REMUNERAÇÃO","%","VALOR (R$)"]
["A","Salário Base (Cláusula 2 e 3ª da Convenção Coletiva de Trabalho)",null,{"$f":"D18","v":2226.4}]
["B","Adicional Periculosidade  (Cláusulas 12ª da Convenção Coletiva de Trabalho)",null,0]
["C","Adicional Insalubridade (Cláusulas 12ª da Convenção Coletiva de Trabalho)",null,0]
["D","Adicional Noturno (Cláusulas 11ª da Convenção Coletiva de Trabalho)",null,0]
["E","Adicional de Hora Noturna Reduzida (Cláusulas 11ª da Convenção Coletiva de Trabalho)",null,0]
["F","Adicional de Hora Extra no Feriado Trabalhado  (Cláusulas 10ª da Convenção Coletiva de Trabalho)",null,0]
["TOTAL DO MÓDULO 1",null,null,{"$f":"TRUNC(SUM(D24:D29),2)","v":2226.4}]
[]
["MÓDULO 2 – ENCARGOS E BENEFÍCIOS ANUAIS, MENSAIS E DIÁRIOS"]
["Submódulo 2.1 - 13º Salário, Férias e Adicional de Férias",null,"%","VALOR (R$)"]
["A","13º (décimo terceiro) Salário (SINAPI - Composição de Encargos Sociais - 12/2023)",{"$f":"1/12","v":8.3333333333333329E-2},{"$f":"$D$30*C34","v":185.53333333333333}]
["B","Férias e 1/3 Constitucional (ANEXO XII da Instrução Normativa Nº 5, de 26 de Maio De 2017)",0.121,{"$f":"C35*D30","v":269.39440000000002}]
["TOTAL SUBMÓDULO 2.1",null,{"$f":"TRUNC(SUM(C34:C35),4)","v":0.20430000000000001},{"$f":"TRUNC(SUM(D34:D35),2)","v":454.92}]
[]
["Submódulo 2.2 - GPS, FGTS e Outras Contribuições",null,"%","VALOR (R$)"]
["A","INSS (SINAPI - Composição de Encargos Sociais - 12/2023)",0.2,{"$f":"($D$30+$D$36)*C39","v":536.26400000000001}]
["B","Salário Educação (SINAPI - Composição de Encargos Sociais - 12/2023)",2.5000000000000001E-2,{"$f":"($D$30+$D$36)*C40","v":67.033000000000001}]
["C","SAT (SINAPI - Composição de Encargos Sociais - 12/2023)",0.03,{"$f":"($D$30+$D$36)*C41","v":80.439599999999999}]
["D","SESC ou SESI (SINAPI - Composição de Encargos Sociais - 12/2023)",1.4999999999999999E-2,40.219799999999999]
["E","SENAI - SENAC (SINAPI - Composição de Encargos Sociais - 12/2023)",0.01,26.813200000000002]
["F","SEBRAE (SINAPI - Composição de Encargos Sociais - 12/2023)",6.0000000000000001E-3,16.08792]
["G","INCRA (SINAPI - Composição de Encargos Sociais - 12/2023)",2E-3,5.3626400000000007]
["H","FGTS (SINAPI - Composição de Encargos Sociais - 12/2023)",0.08,214.50560000000002]
["I","Contribuição Social (Cláusula 60ª da Convenção Coletiva de Trabalho)",0.01,26.813200000000002]
["J","Contribuição Negocial (Cláusula 59ª da Convenção Coletiva de Trabalho)",{"$f":"0.05/12","v":4.1666666666666666E-3},11.172166666666667]
["L","Contribuição Confederativa (Cláusula 61ª da Convenção Coletiva de Trabalho)",0.01,26.813200000000002]
["TOTAL SUBMÓDULO 2.2",null,{"$f":"SUM(C39:C49)","v":0.39216666666666672},{"$f":"TRUNC(SUM(D39:D49),2)","v":1051.52}]
[]
["Submódulo 2.3 - Benefícios Mensais e Diários",null,null,"VALOR (R$)"]
["A","Auxílio Transporte ((Tarifa de transporte municipal*2*22\ndias) – 6%* Vencimento Básico)",4,{"$f":"(C53*2*22)-(D24*6%)","v":42.415999999999997}]
["B","Auxílio Refeição/Alimentação (Cláusula 15ª da Convenção Coletiva de Trabalho)",239.52,{"$f":"C54","v":239.52}]
["TOTAL SUBMÓDULO 2.3",null,null,{"$f":"TRUNC(SUM(D53:D54),2)","v":281.93}]
[]
["QUADRO-RESUMO DO MÓDULO 2 - ENCARGOS, BENEFÍCIOS ANUAIS, MENSAIS E DIÁRIOS"]
["Módulo 2 - Encargos, Benefícios Anuais, Mensais e Diários",null,null,"VALOR (R$)"]
["2.1","13º Salário, Férias e Adicional de Férias",null,{"$f":"D36","v":454.92}]
["2.2","GPS, FGTS e Outras Contribuições",null,{"$f":"D50","v":1051.52}]
["2.3","Benefícios Mensais e Diários",null,{"$f":"D55","v":281.93}]
["TOTAL DO MÓDULO 2",null,null,{"$f":"TRUNC(SUM(D59:D61),2)","v":1788.37}]
[]
["MÓDULO 3 – PROVISÃO PARA RESCISÃO"]
[3,"PROVISÃO PARA RESCISÃO","%","VALOR (R$)"]
["A","Aviso prévio indenizado  (SINAPI - Composição de Encargos Sociais - 12/2023)",4.0300000000000002E-2,{"$f":"$D$30*C66","v":89.723920000000007}]
["B","Incidência do FGTS sobre o Aviso prévio indenizado",{"$f":"$C$46*C66","v":3.2240000000000003E-3},{"$f":"C67*D30","v":7.177913600000001}]
["D","Aviso prévio  trabalhado  (SINAPI - Composição de Encargos Sociais -12/2023)",8.9999999999999998E-4,{"$f":"$D$30*C68","v":2.0037600000000002}]
["E","Incidência do Submódulo 2.2 sobre o Aviso Prévio Trabalhado",{"$f":"$C$50*C68","v":3.5295000000000004E-4},{"$f":"$D$30*C69","v":0.78580788000000013}]
["F","Multa do FGTS sobre o Aviso Prévio Indenizado e Aviso Prévio Trabalhado  (SINAPI - Composição de Encargos Sociais - 12/2023)",0.05,{"$f":"$D$30*C70","v":111.32000000000001}]
["TOTAL DO MÓDULO 3",null,{"$f":"TRUNC(SUM(C66:C70),4)","v":9.4700000000000006E-2},{"$f":"TRUNC(SUM(D66:D70),2)","v":211.01}]
[]
["MÓDULO 4 – CUSTO DE REPOSIÇÃO DO PROFISSIONAL AUSENTE"]
["Base de Cálculo do Custo do Substituto (BCCS) = Módulos 1 + 2 + Férias - (V. Transporte e V. Alimentação) + 3 ",null,null,"VALOR (R$)"]
["Módulo 1 - Remuneração",null,null,{"$f":"D18","v":2226.4}]
["Módulo 2 - Encargos e Benefícios Anuais, Mensais e Diários",null,null,{"$f":"D62","v":1788.37}]
["Acréscimo das Férias com incidência do 2.2 ",null,null,{"$f":"1/12*D30*(1+C50)","v":258.29332222222223}]
["Desconto do Auxílio-Refeição",null,null,{"$f":"-D54","v":-239.52}]
["Módulo 3 - Provisão para Rescisão",null,null,{"$f":"D71","v":211.01}]
["TOTAL BCCS",null,null,{"$f":"TRUNC(SUM(D75:D79),2)","v":4244.55}]
[]
["Submódulo 4.1 - Substituto nas Ausências Legais",null,"%","VALOR (R$)"]
["A","Férias (SINAPI - Composição de Encargos Sociais - 12/2023)",0.10340000000000001,{"$f":"$D$80*C83","v":438.88647000000003}]
["B","Auxílio Doença  (SINAPI - Composição de Encargos Sociais - a partir de 12/2023)",6.4000000000000003E-3,27.165120000000002]
["C","Acidente de Trabalho  (SINAPI - Composição de Encargos Sociais - a partir de 12/2023)",8.0000000000000004E-4,3.3956400000000002]
["D","Faltas Legais  (SINAPI - Composição de Encargos Sociais - a partir de 12/2023)",{"$f":"(2/30)/12","v":5.5555555555555558E-3},23.580833333333334]
["E","Férias sobre afastamento maternidade  (SINAPI - Composição de Encargos Sociais - a partir de 12/2023)",2.9999999999999997E-4,1.2733649999999999]
["F","Licença paternidade  (SINAPI - Composição de Encargos Sociais - a partir de 12/2023)",4.0000000000000002E-4,1.6978200000000001]
["TOTAL MÓDULO 4",null,{"$f":"TRUNC(SUM(C83:C88),4)","v":0.1168},{"$f":"TRUNC(SUM(D83:D88),2)","v":495.99}]
[]
["MÓDULO 5 – INSUMOS DIVERSOS"]
[5,"INSUMOS DIVERSOS",null,"VALOR (R$)"]
["A","Uniformes ",null,{"$f":"'Insumos - Módulo 5'!F17","v":244.31499999999997}]
["B","Certificado Digital",null,{"$f":"'Insumos - Módulo 5'!F22","v":15.833333333333334}]
["TOTAL DO MÓDULO 5",null,null,{"$f":"TRUNC(SUM(D93:D94),2)","v":260.14}]
[]
["MÓDULO 6 – CUSTOS INDIRETOS, TRIBUTOS E LUCRO"]
[6,"CUSTOS INDIRETOS, TRIBUTOS E LUCRO","%","VALOR (R$)"]
["A","Custos Indiretos",0.05,{"$f":"TRUNC(C99*D116,2)","v":249.09}]
["B","Subtotal 1 (A + Total Custos Diretos)",null,{"$f":"D99+D116","v":5231}]
["C","Lucro",0.1,{"$f":"TRUNC(C101*(D99+D116),2)","v":523.1}]
["D","Subtotal 2 (B+C)",null,{"$f":"D100+D101","v":5754.1}]
["E","TRIBUTOS \nTributos (estimado com base no Lucro Presumido - a empresa deverá preencher de acordo com o regime tributário a que é submetida) - (E=(D/(1-Tributos%))x(Tributos%)",8.6499999999999994E-2,{"$f":"(D102/(1-C103))*C103","v":544.86004378763005}]
["E.1","COFINS",0.03]
["E.2","PIS ",6.4999999999999997E-3]
["E.3","ISS",0.05]
["TOTAL DO MÓDULO 6 (A+C+E)",null,null,{"$f":"D99+D101+D103","v":1317.0500437876301}]
[]
["QUADRO RESUMO DO CUSTO POR EMPREGADO"]
["Módulo",null,null,"VALOR (R$)"]
["A",{"$f":"A22","v":"MÓDULO 1 - COMPOSIÇÃO DA REMUNERAÇÃO"},null,{"$f":"D30","v":2226.4}]
["B",{"$f":"A32","v":"MÓDULO 2 – ENCARGOS E BENEFÍCIOS ANUAIS, MENSAIS E DIÁRIOS"},null,{"$f":"D62","v":1788.37}]
["C",{"$f":"A64","v":"MÓDULO 3 – PROVISÃO PARA RESCISÃO"},null,{"$f":"D71","v":211.01}]
["D",{"$f":"A73","v":"MÓDULO 4 – CUSTO DE REPOSIÇÃO DO PROFISSIONAL AUSENTE"},null,{"$f":"D89","v":495.99}]
["E",{"$f":"A91","v":"MÓDULO 5 – INSUMOS DIVERSOS"},null,{"$f":"D95","v":260.14}]
["Subtotal (A + B + C + D + E) - Custos Diretos",null,null,{"$f":"TRUNC(SUM(D111:D115),2)","v":4981.91}]
["F",{"$f":"A97","v":"MÓDULO 6 – CUSTOS INDIRETOS, TRIBUTOS E LUCRO"},null,{"$f":"D107","v":1317.0500437876301}]
["PREÇO TOTAL POR EMPREGADO / MÊS (CUSTO FIXO)",null,null,{"$f":"D117+D116","v":6298.9600437876297}]

{"sheet":"Insumos - Módulo 5","index":6,"n_rows":28,"n_cols":6,"rows_kept":28,"cut":false,"hidden":false,"merged":[[27,0,27,3],[0,0,0,5],[1,0,1,5],[2,0,2,5],[16,0,16,3],[17,0,17,5],[18,0,18,5],[21,0,21,3],[23,0,23,5],[24,0,24,3],[25,0,25,3],[26,0,26,3]]}
["MÓDULO 5 – INSUMOS DIVERSOS"]
["Formação de Preços de Insumos (por posto)"]
["Uniforme"]
["Descrição","Quantidade","Unidade","Valor Unitário ","Valor Anual","Valor Mensal"]
["Bota",2,"Par",356.5,{"$f":"D5*B5","v":713},{"$f":"E5/12","v":59.416666666666664}]
["Capacete",1,"Unidade",58.25,58.25,4.854166666666667]
["Crachá",1,"Unidade",3.87,3.87,0.32250000000000001]
["Luvas",{"$f":"5*12","v":60},"Par",10,600,50]
["Macacão (c/ logo da contratada)",3,"Unidade",253.11,759.33,63.277500000000003]
["Meias",{"$f":"5*12","v":60},"Par",2.75,{"$f":"D10*B10","v":165},{"$f":"E10/12","v":13.75}]
["Óculos EPI",{"$f":"2*12","v":24},"Unidade",4.75,114,9.5]
["Protetor Auricular",{"$f":"1*12","v":12},"Unidade",1.18,14.16,1.18]
["Protetor Auricular Concha",1,"Unidade",85,85,{"$f":"E13/12","v":7.083333333333333}]
["Protetor Solar",1,"Unidade",11.17,11.17,0.93083333333333329]
["Respirador PFF1",{"$f":"20*12/2","v":120},"Unidade",1.94,232.79999999999998,{"$f":"E15/12","v":19.399999999999999}]
["Respirador PFF2",{"$f":"20*12/2","v":120},"Unidade",1.46,175.2,14.6]
["Total",null,null,null,{"$f":"SUM(E5:E16)","v":2931.7799999999997},244.31499999999997]
[]
["Cetificado Digital - A3"]
["Descrição","Quantidade","Unidade","Valor Unitário ","Valor Anual","Valor Mensal"]
["Cetificado Digital - A3 (Somente para motoristas)",1,"Unidade ",190,{"$f":"D21*B21","v":190},{"$f":"E21/12","v":15.833333333333334}]
["Total",null,null,null,{"$f":"SUM(E21)","v":190},{"$f":"SUM(F21)","v":15.833333333333334}]
[]
["TOTAL INSUMOS"]
["Descrição",null,null,null,"Valor Anual","Valor Mensal"]
[{"$f":"A3","v":"Uniforme"},null,null,null,{"$f":"E17","v":2931.7799999999997},{"$f":"F17","v":244.31499999999997}]
["Cetificado Digital - A3 Motoristas (Somente para motoristas)",null,null,null,{"$f":"E22","v":190},{"$f":"F22","v":15.833333333333334}]
["Total",null,null,null,{"$f":"SUM(E26:E27)","v":3121.7799999999997},{"$f":"E28/12","v":260.14833333333331}]

{"sheet":"Diárias - Módulo 7","index":7,"n_rows":33,"n_cols":3,"rows_kept":33,"cut":false,"hidden":false,"merged":[[0,0,0,2],[30,0,30,2],[31,0,31,2],[32,0,32,2],[5,0,5,2],[15,0,15,2],[2,0,2,2],[12,0,12,2],[22,0,22,2],[1,0,1,2],[29,0,29,2],[28,0,28,2]]}
["MÓDULO 7 - DIÁRIAS (CUSTOS VARIÁVEIS)"]
["Formação de Preços de Diárias (por posto)"]
["Valor da Diária - CAPITAL"]
["Diária a ser paga ao colaborador",null,345.08]
[]
["Tributos a serem retidos"]
["ISS",0.05,{"$f":"C11*B7","v":20.168322618351841}]
["TRIBUTOS FEDERAIS (IN RFB 1234/2012)",9.4500000000000001E-2,{"$f":"C11*B8","v":38.118129748684979}]
["Total",{"$f":"SUM(B7:B8)","v":0.14450000000000002},{"$f":"SUM(C7:C8)","v":58.286452367036816}]
[]
["Preço total de 1 (uma) diária em capital para 1 (um) posto",null,{"$f":"(C4/0.8555)","v":403.3664523670368}]
[]
["Valor da Diária - DEMAIS LOCALIDADES"]
["Diária a ser paga ao colaborador",null,252.8]
[]
["Tributos a serem retidos"]
["ISS",0.05,{"$f":"C21*B17","v":14.774985388661603}]
["TRIBUTOS FEDERAIS (IN RFB 1234/2012)",9.4500000000000001E-2,{"$f":"C21*B18","v":27.92472238457043}]
["Total",{"$f":"SUM(B17:B18)","v":0.14450000000000002},{"$f":"SUM(C17:C18)","v":42.699707773232035}]
[]
["Preço total de 1 (uma) diária nas demais localidades para 1 (um) posto",null,{"$f":"(C14/0.8555)","v":295.49970777323205}]
[]
["TOTAL DIÁRIAS / MÊS"]
["Quantidade de diárias por mês para cada posto","Diárias","Valor"]
["Diárias/mês por posto (capital)",0,{"$f":"B25*C11","v":0}]
["Diárias/mês por posto (demais localidades)",{"$f":"4*4","v":16},{"$f":"B26*C21","v":4727.9953243717127}]
["Total",{"$f":"SUM(B25:B26)","v":16},{"$f":"C25+C26","v":4727.9953243717127}]
[]
["* Não haverá incidência de percentual de lucro sobre o custo da diária;"]
["* O modelo aqui apresentado serve de referência, e apresenta os percentuais máximos de retenção de tributos. A contratada deverá justificar os percentuais de retenção, conforme a legislação aplicável, caso sejam diferentes;"]
["* Fórmula do preço total de uma diária (valor bruto): Diária a ser pago ao motorista * 0,8555"]
["* Tributos calculados através do coeficiente (1 - (5% + 9,45%)) = 0,8555"]
["* Planilha a ser apresentada somente no momento da apresentação da fatura mensal, visando ao reembolso das despesas com diárias efetivamente pagas."]